bitfinex/quotes_SOLUSD_20220227
["timestamp","ask_amount","ask_price","bid_price","bid_amount"]
[1645989596831,1.70196801,86.744,86.659,26.13221237]
[1645989597032,2.17124987,86.741,86.659,26.13221237]
[1645989597231,1.81256521,86.738,86.659,26.13221237]
[1645989597431,6.0,86.737,86.659,26.13221237]
[1645989597833,2.01650927,86.75,86.661,1.08206657]
[1645989598031,6.0,86.749,86.661,1.08206657]
[1645989598731,113.2,86.756,86.661,1.08206657]
[1645989598934,7.89396129,86.755,86.661,1.08206657]
[1645989600032,7.89396129,86.755,86.663,113.2]
[1645989600234,2.74678921,86.79,86.671,113.2]
[1645989600435,2.74678921,86.79,86.667,65.0]
[1645989600436,2.74678921,86.79,86.692,181.09]
[1645989600638,1.91486354,86.847,86.701,181.09]
[1645989600834,5.0,86.92,86.7,13.77]
[1645989600835,1.61950096,86.869,86.704,2.45384201]
[1645989601035,1.63694962,86.867,86.707,2.49721692]
[1645989601234,1.86004261,86.865,86.721,181.09]
[1645989601441,16.51678921,86.88,86.73,13.77]
[1645989601442,17.64832101,86.847,86.73,13.77]
[1645989601634,113.2,86.846,86.731,6.0]
[1645989601835,1.7968114,86.845,86.731,6.0]
[1645989602036,29.59828036,86.845,86.731,6.0]
[1645989602234,1.65042005,86.838,86.725,6.0]
[1645989603235,113.2,86.829,86.724,30.25680409]
[1645989603436,2.87786175,86.827,86.724,30.25680409]
[1645989603636,3.591,86.826,86.724,30.25680409]
[1645989603839,113.2,86.825,86.724,30.25680409]
[1645989604040,5.47043597,86.824,86.724,30.25680409]
[1645989604238,113.2,86.819,86.724,30.25680409]
[1645989604436,1.91611135,86.818,86.724,30.25680409]
[1645989604637,4.66290056,86.818,86.724,30.25680409]
[1645989605036,2.74678921,86.817,86.724,30.25680409]
[1645989605237,1.91611135,86.818,86.724,30.25680409]
[1645989605438,1.72249281,86.828,86.724,30.25680409]
[1645989606039,3.552,86.826,86.724,30.25680409]
[1645989607040,113.2,86.824,86.724,30.25680409]
[1645989607239,1.43315072,86.823,86.724,30.25680409]
[1645989607640,1.91229038,86.818,86.724,30.25680409]
[1645989608642,1.91229038,86.818,86.725,113.2]
[1645989608842,1.76032717,86.826,86.727,113.2]
[1645989609041,1.76032717,86.826,86.73,13.77]
[1645989609247,1.76032717,86.826,86.731,6.0]
[1645989609443,1.54862526,86.838,86.732,113.2]
[1645989609642,1.5592848,86.859,86.736,181.09]
[1645989609843,1.5592848,86.859,86.75,13.77]
[1645989610046,1.5592848,86.859,86.751,119.2]
[1645989610243,1.5592848,86.859,86.751,6.0]
[1645989610443,15.02162288,86.858,86.752,26.31579336]
[1645989610745,114.76974549,86.857,86.752,26.31579336]
[1645989610943,113.2,86.855,86.753,6.0]
[1645989611145,1.64462786,86.854,86.752,26.31579336]
[1645989611545,1.64462786,86.854,86.753,8.74678921]
[1645989611943,1.64462786,86.854,86.754,2.74678921]
[1645989612346,1.64462786,86.854,86.755,6.0]
[1645989612747,1.64462786,86.854,86.756,2.74678921]
[1645989613543,2.74678921,86.853,86.756,2.74678921]
[1645989613745,1.64462786,86.854,86.756,2.74678921]
[1645989614246,6.0,86.853,86.756,2.74678921]
[1645989614445,6.0,86.853,86.757,6.0]
[1645989614952,113.2,86.852,86.757,6.0]
[1645989615148,1.64462786,86.854,86.757,6.0]
[1645989615547,1.64462786,86.854,86.758,2.74678921]
[1645989615548,2.74678921,86.852,86.758,2.74678921]
[1645989615947,1.64462786,86.854,86.759,6.0]
[1645989616349,24.6407,86.855,86.759,6.0]
[1645989616554,15.02162288,86.858,86.76,6.0]
[1645989616748,15.02162288,86.858,86.761,113.2]
[1645989616947,15.02162288,86.858,86.763,113.2]
[1645989617150,1.8018566,86.857,86.767,113.2]
[1645989617346,1.8018566,86.857,86.766,34.66038427]
[1645989617347,1.8018566,86.857,86.768,6.0]
[1645989617750,1.8018566,86.857,86.769,115.94678921]
[1645989617951,1.8018566,86.857,86.77,6.0]
[1645989618151,1.8018566,86.857,86.77,8.74678921]
[1645989618354,1.8018566,86.857,86.77,2.74678921]
[1645989618554,1.8018566,86.857,86.771,2.74678921]
[1645989619173,15.02162288,86.858,86.771,2.74678921]
[1645989619775,15.02162288,86.858,86.772,6.0]
[1645989620180,15.02162288,86.858,86.773,115.94678921]
[1645989620378,15.02162288,86.858,86.774,6.0]
[1645989620675,15.02162288,86.858,86.774,8.74678921]
[1645989620879,15.02162288,86.858,86.775,2.74678921]
[1645989621079,15.02162288,86.858,86.777,113.2]
[1645989621275,15.02162288,86.858,86.778,6.0]
[1645989621879,15.02162288,86.858,86.776,6.0]
[1645989622077,15.02162288,86.858,86.779,2.74678921]
[1645989622277,15.02162288,86.858,86.781,32.62343297]
[1645989622479,15.02162288,86.858,86.782,6.0]
[1645989623578,1.55807766,86.873,86.783,115.94678921]
[1645989623778,1.55807766,86.873,86.785,113.2]
[1645989623977,1.55807766,86.873,86.784,6.0]
[1645989623978,1.55807766,86.873,86.787,113.2]
[1645989624177,1.55807766,86.873,86.789,113.2]
[1645989624379,1.55807766,86.873,86.788,6.0]
[1645989624380,1.55807766,86.873,86.79,119.2]
[1645989624577,1.91383521,86.871,86.79,121.94678921]
[1645989624778,1.39206779,86.87,86.79,8.74678921]
[1645989625078,1.39206779,86.87,86.781,32.62343297]
[1645989625481,1.39206779,86.87,86.782,6.0]
[1645989625683,1.39206779,86.87,86.782,8.74678921]
[1645989625881,1.39206779,86.87,86.782,11.35866544]
[1645989626480,1.39206779,86.87,86.782,5.35866544]
[1645989628681,6.0,86.869,86.782,5.35866544]
[1645989629182,1.92740382,86.868,86.782,5.35866544]
[1645989629583,3.621,86.867,86.782,5.35866544]
[1645989629781,113.2,86.866,86.767,24.9686]
[1645989629983,1.89074549,86.865,86.768,5.35866544]
[1645989630185,1.67334746,86.858,86.768,5.35866544]
[1645989630384,3.72387779,86.856,86.769,27.27930173]
[1645989630583,3.618,86.855,86.769,27.27930173]
[1645989630985,1.8465138,86.853,86.768,5.35866544]
[1645989631184,3.617,86.852,86.768,5.35866544]
[1645989631585,113.2,86.839,86.768,5.35866544]
[1645989631786,1.75543772,86.838,86.768,5.35866544]
[1645989631987,113.2,86.836,86.768,5.35866544]
[1645989632185,113.2,86.834,86.768,5.35866544]
[1645989632385,1.72963782,86.833,86.768,5.35866544]
[1645989632785,1.41325659,86.828,86.768,5.35866544]
[1645989633386,1.41325659,86.828,86.756,5.35866544]
[1645989633587,2.74678921,86.827,86.756,5.35866544]
[1645989633788,113.2,86.819,86.756,5.35866544]
[1645989633985,1.49663965,86.818,86.756,5.35866544]
[1645989634185,113.2,86.816,86.692,61.2248]
[1645989634389,4.24342886,86.818,86.663,6.01423615]
[1645989634390,113.2,86.814,86.68,13.77]
[1645989634590,113.2,86.809,86.681,51.4506653]
[1645989634785,113.2,86.799,86.681,73.2276946]
[1645989634989,62.87569376,86.798,86.682,113.2]
[1645989635287,1.78135726,86.797,86.683,3.00319387]
[1645989635486,1.78135726,86.797,86.684,119.2]
[1645989635686,1.78135726,86.797,86.686,181.09]
[1645989635887,1.78135726,86.797,86.691,113.2]
[1645989636088,1.78135726,86.797,86.693,113.2]
[1645989636287,1.78135726,86.797,86.695,113.2]
[1645989636488,1.78135726,86.797,86.697,113.2]
[1645989636687,1.78135726,86.797,86.699,113.2]
[1645989636887,1.78135726,86.797,86.701,113.2]
[1645989637091,1.78135726,86.797,86.703,113.2]
[1645989637489,1.78135726,86.797,86.705,113.2]
[1645989637891,1.78135726,86.797,86.706,67.89]
[1645989638190,13.63185227,86.798,86.707,115.67424512]
[1645989638392,1.53468883,86.824,86.717,115.44945102]
[1645989638591,1.53468883,86.824,86.719,113.2]
[1645989638793,1.53468883,86.824,86.72,132.97]
[1645989639193,114.73468883,86.824,86.72,19.77]
[1645989639392,1.55703041,86.821,86.721,35.24781709]
[1645989639995,2.74678921,86.82,86.67,113.2]
[1645989640194,118.69259,86.819,86.659,47.7745]
[1645989640397,112.2797659,86.779,86.674,43.0353]
[1645989640593,113.2,86.809,86.675,70.28869015]
[1645989640793,1.55900452,86.808,86.676,2.53976673]
[1645989640993,3.68475367,86.807,86.681,67.89]
[1645989641193,3.68475367,86.807,86.68,13.77]
[1645989641194,3.68475367,86.807,86.686,181.09]
[1645989641395,3.68475367,86.807,86.691,113.2]
[1645989641594,23.6593,86.806,86.693,113.2]
[1645989641794,1.61453489,86.805,86.695,113.2]
[1645989641993,1.61453489,86.805,86.697,113.2]
[1645989642196,1.61453489,86.805,86.699,113.2]
[1645989642493,1.61453489,86.805,86.698,6.0]
[1645989642494,1.61453489,86.805,86.7,119.2]
[1645989642692,1.61453489,86.805,86.7,6.0]
[1645989642693,114.81453489,86.805,86.7,6.0]
[1645989642895,1.74097701,86.804,86.698,2.74678921]
[1645989643096,1.74097701,86.804,86.694,22.42157746]
[1645989643299,1.74097701,86.804,86.7,67.89]
[1645989643502,23.6593,86.806,86.702,67.89]
[1645989643700,23.6593,86.806,86.707,113.2]
[1645989643902,23.6593,86.806,86.709,113.2]
[1645989644100,23.6593,86.806,86.71,119.2]
[1645989644300,23.6593,86.806,86.71,126.97]
[1645989644500,23.6593,86.806,86.711,8.74678921]
[1645989644901,23.6593,86.806,86.712,2.74678921]
[1645989645102,23.6593,86.806,86.713,6.0]
[1645989645505,23.6593,86.806,86.714,2.74678921]
[1645989645705,23.6593,86.806,86.715,6.0]
[1645989645904,23.6593,86.806,86.716,113.2]
[1645989646104,23.6593,86.806,86.717,6.0]
[1645989646304,23.6593,86.806,86.717,8.74678921]
[1645989646708,23.6593,86.806,86.718,2.74678921]
[1645989646908,23.6593,86.806,86.719,119.2]
[1645989647106,23.3593,86.806,86.719,119.2]
[1645989647308,23.3593,86.806,86.72,2.74678921]
[1645989647506,23.3593,86.806,86.722,35.90125057]
[1645989647708,23.3593,86.806,86.724,113.2]
[1645989647906,801.4663504,86.808,86.726,181.09]
[1645989647907,800.0,86.808,86.726,181.09]
[1645989648107,800.0,86.808,86.729,2.66021642]
[1645989648408,800.0,86.808,86.732,2.77094289]
[1645989648606,800.0,86.808,86.734,181.09]
[1645989648807,800.0,86.808,86.735,6.0]
[1645989649017,7.87466505,86.807,86.733,2.74678921]
[1645989649219,1.65817991,86.805,86.702,2.74678921]
[1645989649415,1.65817991,86.805,86.682,2.74678921]
[1645989649618,20.20424279,86.804,86.682,2.74678921]
[1645989649819,1.69531252,86.802,86.683,39.08817867]
[1645989650017,1.86697694,86.798,86.683,39.08817867]
[1645989650617,1.86697694,86.798,86.684,6.0]
[1645989651017,1.86697694,86.798,86.683,39.08817867]
[1645989651018,2.74678921,86.797,86.683,36.34138946]
[1645989651425,5.23921261,86.788,86.683,36.34138946]
[1645989651619,1.44322285,86.785,86.683,36.34138946]
[1645989652020,2.74678921,86.784,86.683,36.34138946]
[1645989652222,2.74678921,86.784,86.684,113.2]
[1645989652424,1.44322285,86.785,86.684,115.94678921]
[1645989652622,1.44322285,86.785,86.685,2.74678921]
[1645989652828,1.44322285,86.785,86.686,6.0]
[1645989653030,1.44322285,86.785,86.685,2.74678921]
[1645989653230,1.44322285,86.785,86.687,2.74678921]
[1645989653432,1.44322285,86.785,86.683,36.34138946]
[1645989653631,1.44322285,86.785,86.684,6.0]
[1645989653832,1.44322285,86.785,86.684,8.74678921]
[1645989654033,1.44322285,86.785,86.685,115.94678921]
[1645989654432,1.77772524,86.786,86.687,113.2]
[1645989654631,1.77772524,86.786,86.689,113.2]
[1645989654832,1.77772524,86.786,86.691,113.2]
[1645989655035,1.77772524,86.786,86.693,113.2]
[1645989655232,1.77772524,86.786,86.694,6.0]
[1645989655432,1.77772524,86.786,86.69,6.0]
[1645989656031,1.77772524,86.786,86.689,113.2]
[1645989656233,6.0,86.785,86.684,113.2]
[1645989656433,6.0,86.785,86.686,113.2]
[1645989657033,6.0,86.785,86.688,113.2]
[1645989657334,6.0,86.785,86.689,113.2]
[1645989657934,45.6688,86.787,86.695,113.2]
[1645989658134,45.6688,86.787,86.69,6.0]
[1645989658135,45.6688,86.787,86.697,113.2]
[1645989658337,45.6688,86.787,86.696,73.89]
[1645989658338,45.6688,86.787,86.701,113.2]
[1645989658535,1.74098305,86.802,86.703,113.2]
[1645989658737,1.74098305,86.802,86.705,113.2]
[1645989658937,11.48388866,86.801,86.707,113.2]
[1645989659139,1.72587722,86.8,86.709,113.2]
[1645989659339,1.72587722,86.8,86.71,6.0]
[1645989659538,1.72587722,86.8,86.711,113.2]
[1645989659839,1.72587722,86.8,86.713,113.2]
[1645989660141,1.72587722,86.8,86.714,6.0]
[1645989660438,11.48388866,86.801,86.717,113.2]
[1645989660638,47.4751,86.807,86.719,113.2]
[1645989660838,800.0,86.808,86.721,113.2]
[1645989661039,800.0,86.808,86.731,113.2]
[1645989661240,800.0,86.808,86.733,113.2]
[1645989661440,800.0,86.808,86.735,113.2]
[1645989661641,11.9414111,86.807,86.737,113.2]
[1645989661839,11.9414111,86.807,86.736,37.70182524]
[1645989661840,11.9414111,86.807,86.739,113.2]
[1645989662042,11.9414111,86.807,86.741,113.2]
[1645989662241,11.9414111,86.807,86.743,113.2]
[1645989662444,11.9414111,86.807,86.745,113.2]
[1645989662643,800.0,86.808,86.747,113.2]
[1645989662841,800.0,86.808,86.749,113.2]
[1645989663243,800.0,86.808,86.75,6.0]
[1645989663443,800.0,86.808,86.751,113.2]
[1645989663645,800.0,86.808,86.752,40.17930379]
[1645989664244,800.0,86.808,86.753,113.2]
[1645989664444,800.0,86.808,86.754,6.0]
[1645989666544,800.0,86.808,86.753,6.0]
[1645989667546,800.0,86.808,86.754,113.2]
[1645989667746,800.0,86.808,86.756,113.2]
[1645989667946,800.0,86.808,86.758,113.2]
[1645989668149,800.0,86.808,86.766,181.09]
[1645989668347,800.0,86.808,86.77,113.2]
[1645989668545,800.0,86.808,86.772,113.2]
[1645989668745,800.0,86.808,86.773,6.0]
[1645989669146,800.0,86.808,86.75,13.77]
[1645989669346,800.0,86.808,86.751,6.0]
[1645989669845,800.0,86.808,86.736,113.2]
[1645989670046,800.0,86.808,86.737,34.54318485]
[1645989670246,800.0,86.808,86.737,28.54318485]
[1645989670446,800.0,86.808,86.738,6.0]
[1645989671049,1.87518043,86.807,86.735,6.0]
[1645989671251,1.87518043,86.807,86.722,6.0]
[1645989671472,1.87518043,86.807,86.71,13.77]
[1645989671649,46.9601,86.806,86.703,29.60759508]
[1645989671850,113.2,86.804,86.707,27.71169187]
[1645989672052,1.48033956,86.803,86.707,27.71169187]
[1645989672855,1.48033956,86.803,86.708,6.0]
[1645989673257,1.48033956,86.803,86.709,113.2]
[1645989673457,1.48033956,86.803,86.711,113.2]
[1645989673655,1.48033956,86.803,86.713,113.2]
[1645989673856,1.48033956,86.803,86.714,6.0]
[1645989674058,1.48033956,86.803,86.715,181.09]
[1645989674256,1.48033956,86.803,86.717,113.2]
[1645989674456,1.48033956,86.803,86.719,113.2]
[1645989674656,3.52,86.805,86.721,181.09]
[1645989674857,3.52,86.805,86.723,113.2]
[1645989675059,3.52,86.805,86.727,113.2]
[1645989675258,3.52,86.805,86.73,13.77]
[1645989675459,5.35650011,86.805,86.731,6.0]
[1645989675657,1.83650011,86.805,86.731,8.74678921]
[1645989675959,46.9601,86.806,86.732,32.35438429]
[1645989676157,46.9601,86.806,86.733,6.0]
[1645989676356,46.9601,86.806,86.733,8.74678921]
[1645989676556,46.9601,86.806,86.734,115.94678921]
[1645989676756,46.9601,86.806,86.738,113.2]
[1645989676956,46.9601,86.806,86.74,113.2]
[1645989677156,800.0,86.808,86.746,181.09]
[1645989677357,800.0,86.808,86.748,113.2]
[1645989677755,800.0,86.808,86.746,67.89]
[1645989677756,12.88892493,86.807,86.741,2.74678921]
[1645989677957,12.88892493,86.807,86.749,2.74678921]
[1645989679477,1.89856868,86.806,86.738,2.74678921]
[1645989681779,1.58079092,86.804,86.738,2.74678921]
[1645989683384,6.0,86.803,86.738,2.74678921]
[1645989683583,1.58079092,86.804,86.738,2.74678921]
[1645989684390,113.2,86.806,86.719,0.94370458]
[1645989684391,1.92906755,86.802,86.719,0.94370458]
[1645989684588,1.92906755,86.802,86.63,172.11]
[1645989684589,113.2,86.798,86.665,46.6464]
[1645989684788,113.2,86.798,86.644,17.7055]
[1645989684989,118.96,86.789,86.644,17.7055]
[1645989685186,118.96,86.789,86.625,112.6]
[1645989685187,113.2,86.787,86.625,112.6]
[1645989685388,113.2,86.778,86.657,28.33108927]
[1645989685589,113.2,86.769,86.657,28.33108927]
[1645989685789,1.79504952,86.768,86.621,20.6897132]
[1645989685989,113.2,86.748,86.658,12.92601096]
[1645989686188,113.2,86.739,86.658,0.00601096]
[1645989686393,51.74527323,86.747,86.621,1.2065132]
[1645989686394,118.96,86.729,86.621,1.2065132]
[1645989686688,13.77,86.72,86.621,1.2065132]
[1645989686888,13.77,86.72,86.629,34.4815742]
[1645989686889,29.1639453,86.719,86.629,34.4815742]
[1645989687089,1.44591321,86.718,86.629,34.4815742]
[1645989687390,17.3268,86.7,86.629,34.4815742]
[1645989687591,1.80734873,86.699,86.629,34.4815742]
[1645989688794,22.9693,86.709,86.629,34.4815742]
[1645989688998,1.63286689,86.708,86.629,34.4815742]
[1645989689698,1.63286689,86.708,86.63,4.615]
[1645989689896,22.9693,86.709,86.63,4.615]
[1645989690097,1.77615203,86.739,86.63,28.99228917]
[1645989690295,24.7369,86.745,86.631,30.37728917]
[1645989690499,7.41374936,86.744,86.632,53.58483425]
[1645989690695,7.41374936,86.744,86.633,8.3396885]
[1645989690897,7.41374936,86.744,86.634,4.614]
[1645989691197,7.41374936,86.744,86.633,4.614]
[1645989691400,7.36078921,86.743,86.632,46.6376]
[1645989691602,9.12738629,86.743,86.632,46.6376]
[1645989691796,2.74678921,86.742,86.632,46.6376]
[1645989692197,4.614,86.741,86.632,46.6376]
[1645989692396,113.2,86.739,86.629,34.4815742]
[1645989692598,4.614,86.738,86.629,34.4815742]
[1645989692796,113.2,86.737,86.629,34.4815742]
[1645989692996,6.22725294,86.736,86.629,34.4815742]
[1645989693396,17.3186,86.73,86.629,34.4815742]
[1645989693598,1.59351101,86.729,86.629,34.4815742]
[1645989694301,24.6465,86.728,86.629,34.4815742]
[1645989694600,1.44572714,86.727,86.629,34.4815742]
[1645989694800,6.0,86.726,86.629,34.4815742]
[1645989695001,6.0,86.726,86.63,2.80954547]
[1645989695201,8.74678921,86.726,86.63,2.80954547]
[1645989695400,2.74678921,86.725,86.63,0.06275626]
[1645989695802,1.44572714,86.727,86.631,26.58145249]
[1645989696202,6.0,86.726,86.632,2.74678921]
[1645989697203,1.91995796,86.724,86.632,2.74678921]
[1645989698206,1.91995796,86.724,86.633,0.06275626]
[1645989698405,1.91995796,86.724,86.634,117.814]
[1645989698604,1.91995796,86.724,86.634,144.39545249]
[1645989698812,1.91995796,86.724,86.636,113.2]
[1645989699207,1.91995796,86.724,86.638,113.2]
[1645989699506,1.91995796,86.724,86.639,4.614]
[1645989699704,1.91995796,86.724,86.633,0.06275626]
[1645989699905,1.90656018,86.722,86.633,0.06275626]
[1645989700307,113.2,86.72,86.633,0.06275626]
[1645989700508,6.36781279,86.719,86.633,0.06275626]
[1645989700705,4.614,86.719,86.634,2.74678921]
[1645989700907,1.89797094,86.727,86.634,2.74678921]
[1645989701105,6.0,86.726,86.635,26.18983624]
[1645989701305,1.89797094,86.727,86.635,26.18983624]
[1645989701505,1.89797094,86.727,86.63,0.06275626]
[1645989701808,1.44217406,86.724,86.63,0.06275626]
[1645989702408,1.44217406,86.724,86.631,28.93662545]
[1645989702707,1.44217406,86.724,86.632,2.74678921]
[1645989703507,1.44217406,86.724,86.63,0.06275626]
[1645989703508,17.3208,86.72,86.63,0.06275626]
[1645989703710,115.0496036,86.719,86.63,0.06275626]
[1645989703910,1.91476969,86.718,86.63,0.06275626]
[1645989704211,1.91476969,86.718,86.631,2.74678921]
[1645989704414,1.81405675,86.727,86.631,2.74678921]
[1645989704613,1.81405675,86.727,86.632,0.06275626]
[1645989704910,1.81405675,86.727,86.633,181.09]
[1645989705112,13.77,86.79,86.635,181.09]
[1645989705330,1.53574377,86.744,86.651,67.89]
[1645989705531,1.61890855,86.764,86.661,113.2]
[1645989705731,22.8203,86.765,86.668,67.89]
[1645989705930,22.8203,86.765,86.681,181.09]
[1645989706130,1.87888435,86.797,86.691,113.2]
[1645989706331,1.87888435,86.797,86.693,113.2]
[1645989706530,1.87888435,86.797,86.695,113.2]
[1645989706731,5.83152495,86.796,86.697,113.2]
[1645989707231,5.83152495,86.796,86.698,2.74678921]
[1645989707433,5.83152495,86.796,86.7,13.77]
[1645989707831,5.83152495,86.796,86.701,2.74678921]
[1645989708031,6.0,86.795,86.701,2.74678921]
[1645989708232,7.86042804,86.795,86.701,2.74678921]
[1645989708433,7.86042804,86.795,86.698,0.06275626]
[1645989708434,113.2,86.794,86.698,0.06275626]
[1645989708632,1.65490928,86.793,86.698,0.06275626]
[1645989708832,4.611,86.792,86.698,0.06275626]
[1645989709037,117.811,86.792,86.698,0.06275626]
[1645989709233,1.41892134,86.791,86.698,0.06275626]
[1645989709432,117.811,86.79,86.698,0.06275626]
[1645989709635,113.2,86.788,86.698,0.06275626]
[1645989709834,1.87759365,86.787,86.698,0.06275626]
[1645989710034,1.87759365,86.787,86.699,31.6974491]
[1645989710233,0.76,86.87,86.699,31.6974491]
[1645989710234,1.7000499,86.8,86.71,13.77]
[1645989710439,1.84813036,86.828,86.717,113.2]
[1645989710637,4.67289754,86.807,86.731,113.2]
[1645989710835,4.67289754,86.807,86.73,13.77]
[1645989711035,6.33896696,86.807,86.732,2.74678921]
[1645989711436,6.33896696,86.807,86.733,6.0]
[1645989712038,6.33896696,86.807,86.734,6.0]
[1645989712239,4.67289754,86.807,86.734,2.74678921]
[1645989712439,4.67289754,86.807,86.736,113.2]
[1645989712638,4.67289754,86.807,86.74,13.77]
[1645989713446,4.67289754,86.807,86.74,16.51678921]
[1645989713644,4.67289754,86.807,86.741,0.06275626]
[1645989713844,4.67289754,86.807,86.741,6.06275626]
[1645989714046,1.73401241,86.833,86.744,113.2]
[1645989714245,1.73398094,86.832,86.745,6.0]
[1645989714445,1.87959241,86.831,86.745,2.74678921]
[1645989714646,1.52562586,86.83,86.745,2.74678921]
[1645989714846,143.3368,86.844,86.745,2.74678921]
[1645989714847,1.51206789,86.829,86.745,2.74678921]
[1645989715044,4.24428227,86.807,86.745,2.74678921]
[1645989715847,1.49136157,86.843,86.733,4.609]
[1645989716049,1.40421887,86.807,86.733,2.74678921]
[1645989716248,17.3049,86.8,86.668,81.95277811]
[1645989716447,17.3049,86.8,86.634,17.0225]
[1645989716448,90.0,86.798,86.66,13.77]
[1645989716650,141.84138282,86.797,86.638,2.74678921]
[1645989716854,0.76,86.769,86.638,2.74678921]
[1645989717050,0.76,86.769,86.628,62.0961723]
[1645989717051,0.76,86.749,86.628,62.0961723]
[1645989717252,113.2,86.719,86.628,62.0961723]
[1645989717455,4.615,86.718,86.628,62.0961723]
[1645989717651,113.2,86.717,86.628,62.0961723]
[1645989717854,113.2,86.715,86.628,62.0961723]
[1645989718059,113.2,86.713,86.628,62.0961723]
[1645989718252,113.2,86.711,86.628,62.0961723]
[1645989718453,113.2,86.699,86.628,62.0961723]
[1645989718654,7.07795384,86.698,86.628,62.0961723]
[1645989718851,113.2,86.697,86.628,62.0961723]
[1645989719053,113.2,86.695,86.628,62.0961723]
[1645989719252,2.99630133,86.694,86.628,62.0961723]
[1645989719456,13.77,86.72,86.628,62.0961723]
[1645989719457,2.54928031,86.718,86.628,62.0961723]
[1645989719653,2.54928031,86.718,86.629,22.8007686]
[1645989719852,7.48391921,86.744,86.63,119.2]
[1645989720055,7.48391921,86.744,86.63,121.94678921]
[1645989720253,7.48391921,86.744,86.629,22.8007686]
[1645989720455,113.2,86.743,86.631,2.74678921]
[1645989720655,113.2,86.741,86.631,2.74678921]
[1645989720855,2.55826739,86.74,86.631,2.74678921]
[1645989721053,2.55826739,86.74,86.628,62.0961723]
[1645989721254,113.2,86.738,86.628,175.2961723]
[1645989721455,2.23361255,86.737,86.628,175.2961723]
[1645989721854,2.23361255,86.737,86.629,6.0]
[1645989722658,113.2,86.729,86.628,62.0961723]
[1645989722855,113.2,86.727,86.628,62.0961723]
[1645989723056,7.58594323,86.726,86.628,62.0961723]
[1645989723254,115.84620542,86.734,86.628,62.0961723]
[1645989723456,113.2,86.732,86.628,62.0961723]
[1645989723657,2.74678921,86.725,86.628,62.0961723]
[1645989723859,113.2,86.709,86.628,62.0961723]
[1645989724057,2.43718023,86.708,86.628,62.0961723]
[1645989724258,4.615,86.707,86.628,62.0961723]
[1645989724457,113.2,86.706,86.628,62.0961723]
[1645989724658,4.615,86.705,86.628,62.0961723]
[1645989724857,113.2,86.699,86.628,62.0961723]
[1645989725059,17.3304,86.68,86.628,62.0961723]
[1645989725263,113.2,86.678,86.628,48.75259567]
[1645989725658,7.36278921,86.679,86.542,4.616]
[1645989725659,113.2,86.674,86.542,4.616]
[1645989725857,2.60220723,86.675,86.542,4.616]
[1645989726057,17.3313,86.67,86.56,17.3295]
[1645989726259,2.70037095,86.669,86.56,17.3295]
[1645989726459,2.70037095,86.669,86.56,16.4217492]
[1645989726658,2.70037095,86.669,86.56,19.16853841]
[1645989726859,6.0,86.668,86.56,16.4217492]
[1645989727762,6.0,86.668,86.561,67.89]
[1645989727960,6.0,86.668,86.57,17.3268]
[1645989728360,2.95365283,86.686,86.57,17.3268]
[1645989728561,2.95365283,86.686,86.571,2.74678921]
[1645989728761,2.95365283,86.686,86.572,29.09329057]
[1645989728962,17.3288,86.68,86.572,29.09329057]
[1645989729163,2.18717069,86.679,86.572,29.09329057]
[1645989729563,2.18717069,86.679,86.573,2.74678921]
[1645989730564,2.18717069,86.679,86.573,7.36378921]
[1645989730765,2.18717069,86.679,86.58,17.3256]
[1645989730964,2.93092354,86.688,86.58,17.3256]
[1645989731366,2.93092354,86.688,86.581,2.74678921]
[1645989731865,6.0,86.687,86.581,2.74678921]
[1645989732076,113.2,86.686,86.581,2.74678921]
[1645989732266,6.0,86.687,86.581,2.74678921]
[1645989732267,17.3292,86.68,86.581,2.74678921]
[1645989732465,2.22264429,86.679,86.581,2.74678921]
[1645989732666,2.29404058,86.697,86.59,13.77]
[1645989732867,2.29404058,86.697,86.592,113.2]